[Event "Titled Tuesday Blitz December 06 Early 2022"]
[White "Hoffmann, Asa"]
[Black "Mihailidis, Anastasios"]
[WhiteFideId "2001470"]
[BlackFideId "4205588"]
[WhiteElo "2117"]
[BlackElo "2312"]
[Result "0-1"]
[Round "07"]
[TimeControl "180+1"]
[Date "2022.12.07"]
[WhiteClock "0:00:17"]
[BlackClock "0:00:07"]

1. d4 {[%clk 0:02:49]}  d5 {[%clk 0:02:59]} 2. Bg5 {[%clk 0:02:48]}  h6 {[%clk 0:02:58]} 3. Bh4 {[%clk 0:02:48]}  Qd6 {[%clk 0:02:56]} 4. Qd2 {[%clk 0:02:46]}  Nf6 {[%clk 0:02:55]} 5. Bg3 {[%clk 0:02:45]}  Qd8 {[%clk 0:02:55]} 6. Nc3 {[%clk 0:02:44]}  c6 {[%clk 0:02:54]} 7. f3 {[%clk 0:02:44]}  e6 {[%clk 0:02:54]} 8. e4 {[%clk 0:02:44]}  Be7 {[%clk 0:02:44]} 9. Bd3 {[%clk 0:02:39]}  Bd7 {[%clk 0:02:32]} 10. Nge2 {[%clk 0:02:38]}  a5 {[%clk 0:02:25]} 11. a3 {[%clk 0:02:36]}  O-O {[%clk 0:02:23]} 12. O-O {[%clk 0:02:31]}  c5 {[%clk 0:02:02]} 13. exd5 {[%clk 0:02:21]}  Nxd5 {[%clk 0:01:54]} 14. Nxd5 {[%clk 0:02:17]}  exd5 {[%clk 0:01:53]} 15. dxc5 {[%clk 0:02:12]}  Bxc5+ {[%clk 0:01:53]} 16. Kh1 {[%clk 0:02:12]}  Nc6 {[%clk 0:01:51]} 17. Rad1 {[%clk 0:02:06]}  Be6 {[%clk 0:01:44]} 18. f4 {[%clk 0:01:58]}  Bg4 {[%clk 0:01:38]} 19. h3 {[%clk 0:01:53]}  Bxe2 {[%clk 0:01:37]} 20. Qxe2 {[%clk 0:01:53]}  Qe7 {[%clk 0:01:30]} 21. Qg4 {[%clk 0:01:51]}  Bd4 {[%clk 0:01:10]} 22. Rde1 {[%clk 0:01:39]}  Qd8 {[%clk 0:01:08]} 23. c3 {[%clk 0:01:34]}  Bf6 {[%clk 0:01:08]} 24. Qh5 {[%clk 0:01:21]}  Qd7 {[%clk 0:00:45]} 25. Bh4 {[%clk 0:01:12]}  Bxh4 {[%clk 0:00:45]} 26. Qxh4 {[%clk 0:01:12]}  Rae8 {[%clk 0:00:45]} 27. f5 {[%clk 0:01:08]}  Rxe1 {[%clk 0:00:44]} 28. Rxe1 {[%clk 0:01:08]}  Re8 {[%clk 0:00:37]} 29. Rxe8+ {[%clk 0:00:52]}  Qxe8 {[%clk 0:00:37]} 30. f6 {[%clk 0:00:51]}  Qd8 {[%clk 0:00:36]} 31. Qh5 {[%clk 0:00:41]}  Qxf6 {[%clk 0:00:36]} 32. Qxd5 {[%clk 0:00:40]}  Qe5 {[%clk 0:00:29]} 33. Qxe5 {[%clk 0:00:39]}  Nxe5 {[%clk 0:00:30]} 34. Be4 {[%clk 0:00:39]}  b6 {[%clk 0:00:30]} 35. Bd5 {[%clk 0:00:38]}  Kf8 {[%clk 0:00:29]} 36. Kg1 {[%clk 0:00:38]}  Nd3 {[%clk 0:00:30]} 37. b4 {[%clk 0:00:36]}  Ke7 {[%clk 0:00:23]} 38. Kf1 {[%clk 0:00:33]}  f6 {[%clk 0:00:20]} 39. g3 {[%clk 0:00:32]}  Kd6 {[%clk 0:00:19]} 40. Bf7 {[%clk 0:00:30]}  Ne5 {[%clk 0:00:19]} 41. Bb3 {[%clk 0:00:29]}  axb4 {[%clk 0:00:19]} 42. axb4 {[%clk 0:00:27]}  Nf3 {[%clk 0:00:18]} 43. Kf2 {[%clk 0:00:26]}  Nd2 {[%clk 0:00:18]} 44. Bc2 {[%clk 0:00:25]}  Kd5 {[%clk 0:00:17]} 45. Ke3 {[%clk 0:00:24]}  Nc4+ {[%clk 0:00:17]} 46. Kf4 {[%clk 0:00:24]}  g5+ {[%clk 0:00:14]} 47. Kg4 {[%clk 0:00:23]}  Ne3+ {[%clk 0:00:14]} 48. Kh5 {[%clk 0:00:23]}  Nxc2 {[%clk 0:00:15]} 49. Kxh6 {[%clk 0:00:23]}  Ne3 {[%clk 0:00:12]} 50. Kg6 {[%clk 0:00:22]}  Ke5 {[%clk 0:00:12]} 51. h4 {[%clk 0:00:22]}  gxh4 {[%clk 0:00:12]} 52. gxh4 {[%clk 0:00:22]}  f5 {[%clk 0:00:09]} 53. Kg5 {[%clk 0:00:22]}  f4 {[%clk 0:00:08]} 54. h5 {[%clk 0:00:21]}  Nf5 {[%clk 0:00:09]} 55. Kg4 {[%clk 0:00:20]}  Ke4 {[%clk 0:00:09]} 56. c4 {[%clk 0:00:19]}  Nh6+ {[%clk 0:00:08]} 57. Kh3 {[%clk 0:00:19]}  f3 {[%clk 0:00:08]} 58. c5 {[%clk 0:00:18]}  bxc5 {[%clk 0:00:08]} 59. bxc5 {[%clk 0:00:18]}  Ke3 {[%clk 0:00:07]} 60. Kg3 {[%clk 0:00:17]}  f2 {[%clk 0:00:07]} 61. Kg2 {[%clk 0:00:17]}  Ke2 {[%clk 0:00:07]} 62. c6 {[%clk 0:00:17]}  f1=Q+ {[%clk 0:00:08]} 63. Kg3 {[%clk 0:00:17]}  Qc1 {[%clk 0:00:07]} 0-1


[Site "https://www.chess.com"]

[Event "Titled Tuesday Blitz December 06 Early 2022"]
[White "Ismayil, Malak"]
[Black "Nugumanov, Bakhtiyar"]
[WhiteFideId "13412604"]
[BlackFideId "13701797"]
[WhiteElo "2505"]
[BlackElo "2377"]
[Result "1-0"]
[Round "07"]
[TimeControl "180+1"]
[Date "2022.12.07"]
[WhiteClock "0:00:15"]
[BlackClock "0:00:06"]

1. e4 {[%clk 0:03:00]}  c5 {[%clk 0:02:56]} 2. Nf3 {[%clk 0:02:59]}  Nc6 {[%clk 0:02:52]} 3. Bb5 {[%clk 0:02:59]}  g6 {[%clk 0:02:51]} 4. Bxc6 {[%clk 0:02:59]}  dxc6 {[%clk 0:02:51]} 5. h3 {[%clk 0:02:59]}  Bg7 {[%clk 0:02:51]} 6. d3 {[%clk 0:03:00]}  Nf6 {[%clk 0:02:51]} 7. Nc3 {[%clk 0:03:01]}  Nd7 {[%clk 0:02:51]} 8. Be3 {[%clk 0:03:01]}  e5 {[%clk 0:02:52]} 9. Qd2 {[%clk 0:03:02]}  h6 {[%clk 0:02:52]} 10. Nh2 {[%clk 0:02:48]}  b6 {[%clk 0:02:45]} 11. O-O {[%clk 0:02:44]}  Nf8 {[%clk 0:02:44]} 12. f4 {[%clk 0:02:44]}  exf4 {[%clk 0:02:45]} 13. Bxf4 {[%clk 0:02:45]}  Ne6 {[%clk 0:02:45]} 14. Be3 {[%clk 0:02:45]}  Nd4 {[%clk 0:02:44]} 15. Rf2 {[%clk 0:02:34]}  Be6 {[%clk 0:02:43]} 16. Raf1 {[%clk 0:02:28]}  Qd7 {[%clk 0:02:31]} 17. Nf3 {[%clk 0:02:27]}  O-O-O {[%clk 0:02:29]} 18. a4 {[%clk 0:02:23]}  c4 {[%clk 0:02:20]} 19. Rd1 {[%clk 0:02:10]}  cxd3 {[%clk 0:02:13]} 20. cxd3 {[%clk 0:02:11]}  Nxf3+ {[%clk 0:02:11]} 21. Rxf3 {[%clk 0:02:10]}  Bb3 {[%clk 0:02:11]} 22. Rdf1 {[%clk 0:02:07]}  Qxd3 {[%clk 0:02:10]} 23. Qf2 {[%clk 0:02:07]}  Bxc3 {[%clk 0:01:59]} 24. bxc3 {[%clk 0:01:55]}  Qxe4 {[%clk 0:01:57]} 25. a5 {[%clk 0:01:38]}  c5 {[%clk 0:01:37]} 26. axb6 {[%clk 0:01:27]}  axb6 {[%clk 0:01:37]} 27. Bxc5 {[%clk 0:01:22]}  bxc5 {[%clk 0:01:27]} 28. Qxc5+ {[%clk 0:01:23]}  Kb8 {[%clk 0:01:25]} 29. Rxf7 {[%clk 0:00:42]}  Bxf7 {[%clk 0:01:09]} 30. Rxf7 {[%clk 0:00:43]}  Qb7 {[%clk 0:00:17]} 31. Qe5+ {[%clk 0:00:40]}  Ka8 {[%clk 0:00:15]} 32. Rxb7 {[%clk 0:00:37]}  Kxb7 {[%clk 0:00:16]} 33. Qg7+ {[%clk 0:00:37]}  Kb8 {[%clk 0:00:16]} 34. Qxg6 {[%clk 0:00:37]}  Rhg8 {[%clk 0:00:15]} 35. Qxh6 {[%clk 0:00:34]}  Rd1+ {[%clk 0:00:15]} 36. Kh2 {[%clk 0:00:35]}  Rdd8 {[%clk 0:00:14]} 37. c4 {[%clk 0:00:34]}  Rc8 {[%clk 0:00:13]} 38. c5 {[%clk 0:00:32]}  Ka8 {[%clk 0:00:10]} 39. Qa6+ {[%clk 0:00:31]}  Kb8 {[%clk 0:00:10]} 40. c6 {[%clk 0:00:32]}  Rc7 {[%clk 0:00:11]} 41. Qb6+ {[%clk 0:00:27]}  Kc8 {[%clk 0:00:10]} 42. h4 {[%clk 0:00:27]}  Rg6 {[%clk 0:00:09]} 43. h5 {[%clk 0:00:23]}  Rgxc6 {[%clk 0:00:08]} 44. Qd4 {[%clk 0:00:22]}  Rc5 {[%clk 0:00:08]} 45. g4 {[%clk 0:00:17]}  Rc2+ {[%clk 0:00:07]} 46. Kh3 {[%clk 0:00:17]}  R2c3+ {[%clk 0:00:07]} 47. Kh4 {[%clk 0:00:17]}  R3c4 {[%clk 0:00:08]} 48. Qh8+ {[%clk 0:00:17]}  Kb7 {[%clk 0:00:09]} 49. Qg8 {[%clk 0:00:17]}  Rd4 {[%clk 0:00:08]} 50. h6 {[%clk 0:00:15]}  Rcc4 {[%clk 0:00:08]} 51. h7 {[%clk 0:00:16]}  Rc1 {[%clk 0:00:07]} 52. h8=Q {[%clk 0:00:15]}  Rh1+ {[%clk 0:00:06]} 53. Kg5 {[%clk 0:00:15]} 1-0


[Site "https://www.chess.com"]

[Event "Titled Tuesday Blitz December 06 Early 2022"]
[White "Kaplan, Avi Harrison"]
[Black "Shapiro, Daniel"]
[WhiteFideId "30934559"]
[BlackFideId "2001780"]
[WhiteElo "1983"]
[BlackElo "2295"]
[Result "0-1"]
[Round "07"]
[TimeControl "180+1"]
[Date "2022.12.07"]
[WhiteClock "0:00:03"]
[BlackClock "0:00:11"]

1. d4 {[%clk 0:02:58]}  Nf6 {[%clk 0:02:59]} 2. Nc3 {[%clk 0:02:58]}  d5 {[%clk 0:02:58]} 3. Bf4 {[%clk 0:02:58]}  c6 {[%clk 0:02:58]} 4. e3 {[%clk 0:02:55]}  e6 {[%clk 0:02:55]} 5. Nf3 {[%clk 0:02:55]}  Bb4 {[%clk 0:02:46]} 6. Bd3 {[%clk 0:02:51]}  Qa5 {[%clk 0:02:43]} 7. Qd2 {[%clk 0:02:26]}  Nbd7 {[%clk 0:02:29]} 8. a3 {[%clk 0:02:27]}  Ne4 {[%clk 0:02:21]} 9. Bxe4 {[%clk 0:02:04]}  dxe4 {[%clk 0:02:21]} 10. Ng5 {[%clk 0:02:04]}  Nf6 {[%clk 0:02:09]} 11. O-O {[%clk 0:02:02]}  Bxc3 {[%clk 0:02:02]} 12. Qxc3 {[%clk 0:01:38]}  Qd5 {[%clk 0:01:28]} 13. b3 {[%clk 0:01:10]}  O-O {[%clk 0:01:25]} 14. Qb2 {[%clk 0:01:05]}  Nh5 {[%clk 0:01:17]} 15. c4 {[%clk 0:01:05]}  Qf5 {[%clk 0:01:17]} 16. Nh3 {[%clk 0:01:03]}  Nxf4 {[%clk 0:01:11]} 17. Nxf4 {[%clk 0:01:04]}  f6 {[%clk 0:01:02]} 18. Rfd1 {[%clk 0:01:01]}  e5 {[%clk 0:00:56]} 19. dxe5 {[%clk 0:00:58]}  fxe5 {[%clk 0:00:56]} 20. Nh3 {[%clk 0:00:58]}  Qh5 {[%clk 0:00:51]} 21. Rd6 {[%clk 0:00:45]}  Bxh3 {[%clk 0:00:48]} 22. gxh3 {[%clk 0:00:45]}  Rf5 {[%clk 0:00:43]} 23. Kf1 {[%clk 0:00:33]}  Qxh3+ {[%clk 0:00:41]} 24. Ke1 {[%clk 0:00:32]}  Qxh2 {[%clk 0:00:37]} 25. Qe2 {[%clk 0:00:23]}  Raf8 {[%clk 0:00:29]} 26. Ra2 {[%clk 0:00:20]}  Rg5 {[%clk 0:00:18]} 27. f4 {[%clk 0:00:04]}  Rg1+ {[%clk 0:00:16]} 28. Kd2 {[%clk 0:00:05]}  Rg2 {[%clk 0:00:16]} 29. Kd1 {[%clk 0:00:05]}  Rxe2 {[%clk 0:00:15]} 30. Rxe2 {[%clk 0:00:06]}  Qh1+ {[%clk 0:00:15]} 31. Kd2 {[%clk 0:00:07]}  exf4 {[%clk 0:00:14]} 32. exf4 {[%clk 0:00:07]}  Qf3 {[%clk 0:00:13]} 33. Re6 {[%clk 0:00:04]}  Qxf4+ {[%clk 0:00:12]} 34. Ke1 {[%clk 0:00:03]}  Qc1# {[%clk 0:00:11]} 0-1


[Site "https://www.chess.com"]

[Event "Titled Tuesday Blitz December 06 Early 2022"]
[White "Korchmar, Vasiliy"]
[Black "Salem, A.R. Saleh"]
[WhiteFideId "24131750"]
[BlackFideId "9301348"]
[WhiteElo "2370"]
[BlackElo "2633"]
[Result "0-1"]
[Round "07"]
[TimeControl "180+1"]
[Date "2022.12.06"]
[WhiteClock "0:00:02"]
[BlackClock "0:01:10"]

1. e4 {[%clk 0:02:56]}  c5 {[%clk 0:02:59]} 2. Nf3 {[%clk 0:02:56]}  Nc6 {[%clk 0:03:00]} 3. d4 {[%clk 0:02:56]}  cxd4 {[%clk 0:03:01]} 4. Nxd4 {[%clk 0:02:57]}  Nf6 {[%clk 0:03:02]} 5. Nc3 {[%clk 0:02:58]}  e5 {[%clk 0:03:03]} 6. Ndb5 {[%clk 0:02:58]}  d6 {[%clk 0:03:03]} 7. Nd5 {[%clk 0:02:58]}  Nxd5 {[%clk 0:03:03]} 8. exd5 {[%clk 0:02:59]}  Nb8 {[%clk 0:03:04]} 9. a4 {[%clk 0:02:59]}  Be7 {[%clk 0:03:04]} 10. Be2 {[%clk 0:02:59]}  O-O {[%clk 0:03:04]} 11. O-O {[%clk 0:02:59]}  Nd7 {[%clk 0:03:04]} 12. f4 {[%clk 0:02:58]}  a6 {[%clk 0:03:02]} 13. Na3 {[%clk 0:02:58]}  a5 {[%clk 0:02:53]} 14. Kh1 {[%clk 0:02:54]}  exf4 {[%clk 0:02:51]} 15. Bxf4 {[%clk 0:02:55]}  Nc5 {[%clk 0:02:52]} 16. Nc4 {[%clk 0:02:43]}  b6 {[%clk 0:02:51]} 17. c3 {[%clk 0:02:40]}  Ba6 {[%clk 0:02:47]} 18. b4 {[%clk 0:02:20]}  Ne4 {[%clk 0:02:42]} 19. Qd4 {[%clk 0:02:14]}  Bxc4 {[%clk 0:02:40]} 20. Bxc4 {[%clk 0:02:07]}  f5 {[%clk 0:02:40]} 21. Be3 {[%clk 0:01:42]}  Rb8 {[%clk 0:02:27]} 22. Qd3 {[%clk 0:01:41]}  Rc8 {[%clk 0:02:26]} 23. Bd4 {[%clk 0:01:29]}  g6 {[%clk 0:02:05]} 24. Ba6 {[%clk 0:01:28]}  Rb8 {[%clk 0:02:02]} 25. g4 {[%clk 0:01:02]}  Bf6 {[%clk 0:01:44]} 26. gxf5 {[%clk 0:01:02]}  Bxd4 {[%clk 0:01:45]} 27. Qxd4 {[%clk 0:01:01]}  Qh4 {[%clk 0:01:41]} 28. Rf3 {[%clk 0:00:47]}  Rxf5 {[%clk 0:01:38]} 29. Rxf5 {[%clk 0:00:47]}  Ng3+ {[%clk 0:01:39]} 30. Kg2 {[%clk 0:00:44]}  Qxd4 {[%clk 0:01:40]} 31. cxd4 {[%clk 0:00:43]}  Nxf5 {[%clk 0:01:40]} 32. bxa5 {[%clk 0:00:31]}  bxa5 {[%clk 0:01:41]} 33. Rc1 {[%clk 0:00:20]}  Kg7 {[%clk 0:01:30]} 34. Rc7+ {[%clk 0:00:16]}  Kh6 {[%clk 0:01:30]} 35. Ra7 {[%clk 0:00:07]}  Rb2+ {[%clk 0:01:27]} 36. Kh3 {[%clk 0:00:04]}  Rb3+ {[%clk 0:01:24]} 37. Kg2 {[%clk 0:00:04]}  Nxd4 {[%clk 0:01:16]} 38. Bc8 {[%clk 0:00:04]}  Rc3 {[%clk 0:01:10]} 39. Bd7 {[%clk 0:00:03]}  Nb3 {[%clk 0:01:10]} 40. Ra6 {[%clk 0:00:02]}  Rc2+ {[%clk 0:01:10]} 41. Kg3 {[%clk 0:00:02]}  Nc5 {[%clk 0:01:10]} 0-1


[Site "https://www.chess.com"]

[Event "Titled Tuesday Blitz December 06 Early 2022"]
[White "Kravtsiv, Martyn"]
[Black "Han, Yichen"]
[WhiteFideId "14113147"]
[BlackFideId "1054430"]
[WhiteElo "2695"]
[BlackElo "2323"]
[Result "1-0"]
[Round "07"]
[TimeControl "180+1"]
[Date "2022.12.06"]
[WhiteClock "0:01:26"]
[BlackClock "0:00:39"]

1. e4 {[%clk 0:02:58]}  e5 {[%clk 0:02:55]} 2. Nf3 {[%clk 0:02:58]}  Nc6 {[%clk 0:02:55]} 3. Nc3 {[%clk 0:02:58]}  Nf6 {[%clk 0:02:54]} 4. a4 {[%clk 0:02:58]}  Bb4 {[%clk 0:02:52]} 5. Bd3 {[%clk 0:02:58]}  O-O {[%clk 0:02:51]} 6. O-O {[%clk 0:02:57]}  d6 {[%clk 0:02:47]} 7. Nd5 {[%clk 0:02:57]}  Bc5 {[%clk 0:02:45]} 8. c3 {[%clk 0:02:57]}  a5 {[%clk 0:02:43]} 9. Bc2 {[%clk 0:02:57]}  Ba7 {[%clk 0:02:37]} 10. d4 {[%clk 0:02:53]}  h6 {[%clk 0:02:24]} 11. Be3 {[%clk 0:02:46]}  Bg4 {[%clk 0:02:22]} 12. Qd3 {[%clk 0:02:46]}  Bh5 {[%clk 0:02:09]} 13. Nxf6+ {[%clk 0:02:32]}  Qxf6 {[%clk 0:02:08]} 14. d5 {[%clk 0:02:32]}  Ne7 {[%clk 0:02:01]} 15. Nd2 {[%clk 0:02:27]}  Ng6 {[%clk 0:01:57]} 16. g3 {[%clk 0:02:26]}  Bg4 {[%clk 0:01:54]} 17. Bxa7 {[%clk 0:02:17]}  Rxa7 {[%clk 0:01:53]} 18. Qe3 {[%clk 0:02:17]}  Raa8 {[%clk 0:01:51]} 19. f4 {[%clk 0:02:18]}  exf4 {[%clk 0:01:41]} 20. gxf4 {[%clk 0:02:19]}  Rae8 {[%clk 0:01:38]} 21. Rae1 {[%clk 0:02:15]}  Bd7 {[%clk 0:01:29]} 22. Qg3 {[%clk 0:02:09]}  Qh4 {[%clk 0:01:20]} 23. Nc4 {[%clk 0:01:56]}  b6 {[%clk 0:01:19]} 24. Ne3 {[%clk 0:01:53]}  Bc8 {[%clk 0:00:44]} 25. Nf5 {[%clk 0:01:44]}  Bxf5 {[%clk 0:00:39]} 26. exf5 {[%clk 0:01:44]}  Qxg3+ {[%clk 0:00:39]} 27. hxg3 {[%clk 0:01:38]}  Ne7 {[%clk 0:00:39]} 28. c4 {[%clk 0:01:26]} 1-0


[Site "https://www.chess.com"]

[Event "Titled Tuesday Blitz December 06 Early 2022"]
[White "Kyaw Lay Htaik"]
[Black "Osiecki, Stanislaw"]
[WhiteFideId "13002007"]
[BlackFideId "1102990"]
[WhiteElo "2261"]
[BlackElo "2088"]
[Result "1-0"]
[Round "07"]
[TimeControl "180+1"]
[Date "2022.12.07"]
[WhiteClock "0:01:50"]
[BlackClock "0:02:24"]

1. d4 {[%clk 0:02:59]}  Nf6 {[%clk 0:02:59]} 2. Nf3 {[%clk 0:02:59]}  d6 {[%clk 0:02:52]} 3. Bf4 {[%clk 0:02:54]}  g6 {[%clk 0:02:53]} 4. Nc3 {[%clk 0:02:51]}  Bg7 {[%clk 0:02:54]} 5. Qd2 {[%clk 0:02:47]}  O-O {[%clk 0:02:55]} 6. O-O-O {[%clk 0:02:42]}  Nbd7 {[%clk 0:02:56]} 7. h3 {[%clk 0:02:40]}  b6 {[%clk 0:02:57]} 8. Bh6 {[%clk 0:02:40]}  Bb7 {[%clk 0:02:58]} 9. Bxg7 {[%clk 0:02:31]}  Ne4 {[%clk 0:02:59]} 10. Nxe4 {[%clk 0:02:30]}  Kxg7 {[%clk 0:02:47]} 11. Ng3 {[%clk 0:02:21]}  c5 {[%clk 0:02:45]} 12. Qg5 {[%clk 0:02:15]}  Nf6 {[%clk 0:02:44]} 13. h4 {[%clk 0:02:04]}  cxd4 {[%clk 0:02:40]} 14. Nxd4 {[%clk 0:02:00]}  Qc7 {[%clk 0:02:38]} 15. h5 {[%clk 0:01:55]}  Rfc8 {[%clk 0:02:23]} 16. hxg6 {[%clk 0:01:53]}  fxg6 {[%clk 0:02:24]} 17. Ne6+ {[%clk 0:01:50]} 1-0


[Site "https://www.chess.com"]

[Event "Titled Tuesday Blitz December 06 Early 2022"]
[White "Laylo, Darwin"]
[Black "Bacrot, Etienne"]
[WhiteFideId "5201330"]
[BlackFideId "605506"]
[WhiteElo "2335"]
[BlackElo "2667"]
[Result "1-0"]
[Round "07"]
[TimeControl "180+1"]
[Date "2022.12.06"]
[WhiteClock "0:00:10"]
[BlackClock "0:00:02"]

1. e4 {[%clk 0:02:54]}  c5 {[%clk 0:02:59]} 2. Nf3 {[%clk 0:02:54]}  d6 {[%clk 0:02:59]} 3. Bb5+ {[%clk 0:02:54]}  Bd7 {[%clk 0:02:59]} 4. Bxd7+ {[%clk 0:02:54]}  Nxd7 {[%clk 0:02:59]} 5. O-O {[%clk 0:02:55]}  Ngf6 {[%clk 0:02:57]} 6. Re1 {[%clk 0:02:55]}  e6 {[%clk 0:02:57]} 7. c3 {[%clk 0:02:55]}  Be7 {[%clk 0:02:57]} 8. d4 {[%clk 0:02:56]}  O-O {[%clk 0:02:56]} 9. Nbd2 {[%clk 0:02:54]}  cxd4 {[%clk 0:02:55]} 10. cxd4 {[%clk 0:02:55]}  Rc8 {[%clk 0:02:54]} 11. b3 {[%clk 0:02:54]}  b5 {[%clk 0:02:43]} 12. Bb2 {[%clk 0:02:54]}  Qa5 {[%clk 0:02:40]} 13. a4 {[%clk 0:02:52]}  a6 {[%clk 0:02:35]} 14. axb5 {[%clk 0:02:47]}  Qxb5 {[%clk 0:02:36]} 15. Ba3 {[%clk 0:02:34]}  Rfe8 {[%clk 0:02:29]} 16. Nc4 {[%clk 0:02:33]}  Qb8 {[%clk 0:02:20]} 17. e5 {[%clk 0:02:27]}  dxe5 {[%clk 0:02:15]} 18. dxe5 {[%clk 0:02:13]}  Nd5 {[%clk 0:02:13]} 19. Bxe7 {[%clk 0:02:09]}  Rxe7 {[%clk 0:02:12]} 20. Rxa6 {[%clk 0:02:08]}  Nc5 {[%clk 0:02:11]} 21. Ra3 {[%clk 0:02:02]}  Qb4 {[%clk 0:02:08]} 22. h3 {[%clk 0:01:36]}  h6 {[%clk 0:02:01]} 23. Kh2 {[%clk 0:01:34]}  Rb7 {[%clk 0:01:44]} 24. Nfd2 {[%clk 0:01:28]}  Nd3 {[%clk 0:01:36]} 25. Rf1 {[%clk 0:01:26]}  Rbb8 {[%clk 0:01:25]} 26. Ra7 {[%clk 0:01:13]}  Qc5 {[%clk 0:01:04]} 27. Ra5 {[%clk 0:01:10]}  Qb4 {[%clk 0:00:53]} 28. Ra4 {[%clk 0:01:04]}  Qc3 {[%clk 0:00:38]} 29. Ra7 {[%clk 0:00:48]}  Nxe5 {[%clk 0:00:31]} 30. Ne4 {[%clk 0:00:46]}  Qb4 {[%clk 0:00:26]} 31. Ra4 {[%clk 0:00:26]}  Qxa4 {[%clk 0:00:12]} 32. bxa4 {[%clk 0:00:27]}  Nxc4 {[%clk 0:00:13]} 33. Qd4 {[%clk 0:00:22]}  Rb4 {[%clk 0:00:11]} 34. Rc1 {[%clk 0:00:22]}  Ncb6 {[%clk 0:00:06]} 35. Rxc8+ {[%clk 0:00:18]}  Nxc8 {[%clk 0:00:07]} 36. Qc5 {[%clk 0:00:18]}  Rxe4 {[%clk 0:00:04]} 37. Qxc8+ {[%clk 0:00:18]}  Kh7 {[%clk 0:00:05]} 38. Qc2 {[%clk 0:00:16]}  f5 {[%clk 0:00:05]} 39. a5 {[%clk 0:00:16]}  Nb4 {[%clk 0:00:05]} 40. Qa4 {[%clk 0:00:11]}  Nd3 {[%clk 0:00:04]} 41. Qa3 {[%clk 0:00:10]}  Nxf2 {[%clk 0:00:03]} 42. a6 {[%clk 0:00:10]}  f4 {[%clk 0:00:02]} 43. Qa1 {[%clk 0:00:10]} 1-0


[Site "https://www.chess.com"]

[Event "Titled Tuesday Blitz December 06 Early 2022"]
[White "Leve, Nitai"]
[Black "Lawson, Eric"]
[WhiteFideId "2006898"]
[BlackFideId "2604116"]
[WhiteElo "2437"]
[BlackElo "2579"]
[Result "0-1"]
[Round "07"]
[TimeControl "180+1"]
[Date "2022.12.07"]
[WhiteClock "0:00:02"]
[BlackClock "0:00:08"]

1. e4 {[%clk 0:03:00]}  c5 {[%clk 0:02:59]} 2. Nf3 {[%clk 0:03:01]}  Nc6 {[%clk 0:02:59]} 3. d4 {[%clk 0:03:01]}  cxd4 {[%clk 0:03:00]} 4. Nxd4 {[%clk 0:03:02]}  e5 {[%clk 0:03:00]} 5. Nb3 {[%clk 0:03:02]}  d6 {[%clk 0:03:00]} 6. Nc3 {[%clk 0:03:03]}  f5 {[%clk 0:02:59]} 7. Bc4 {[%clk 0:03:02]}  Nf6 {[%clk 0:02:58]} 8. Bg5 {[%clk 0:03:00]}  f4 {[%clk 0:02:51]} 9. Nd5 {[%clk 0:02:55]}  Be7 {[%clk 0:02:48]} 10. Bxf6 {[%clk 0:02:49]}  Bxf6 {[%clk 0:02:47]} 11. Qh5+ {[%clk 0:02:49]}  g6 {[%clk 0:02:47]} 12. Qh6 {[%clk 0:02:43]}  a6 {[%clk 0:02:22]} 13. a4 {[%clk 0:02:30]}  b6 {[%clk 0:02:17]} 14. h4 {[%clk 0:02:14]}  Ra7 {[%clk 0:02:16]} 15. Nxf6+ {[%clk 0:02:10]}  Qxf6 {[%clk 0:02:16]} 16. h5 {[%clk 0:02:10]}  Rg7 {[%clk 0:02:06]} 17. O-O-O {[%clk 0:02:02]}  Ke7 {[%clk 0:01:55]} 18. Rd3 {[%clk 0:01:35]}  Nb4 {[%clk 0:01:51]} 19. Rd2 {[%clk 0:01:12]}  Bb7 {[%clk 0:01:49]} 20. f3 {[%clk 0:01:11]}  Rc8 {[%clk 0:01:22]} 21. hxg6 {[%clk 0:00:56]}  hxg6 {[%clk 0:01:19]} 22. Bd3 {[%clk 0:00:47]}  Bc6 {[%clk 0:00:58]} 23. a5 {[%clk 0:00:37]}  Ba4 {[%clk 0:00:44]} 24. axb6 {[%clk 0:00:22]}  Bxb3 {[%clk 0:00:44]} 25. b7 {[%clk 0:00:22]}  Rb8 {[%clk 0:00:44]} 26. cxb3 {[%clk 0:00:22]}  Rxb7 {[%clk 0:00:36]} 27. Qh8 {[%clk 0:00:18]}  Qf8 {[%clk 0:00:23]} 28. Qh4+ {[%clk 0:00:16]}  g5 {[%clk 0:00:23]} 29. Qh6 {[%clk 0:00:14]}  Qf6 {[%clk 0:00:13]} 30. Qxf6+ {[%clk 0:00:14]}  Kxf6 {[%clk 0:00:13]} 31. Bxa6 {[%clk 0:00:14]}  Rb6 {[%clk 0:00:12]} 32. Rh6+ {[%clk 0:00:10]}  Rg6 {[%clk 0:00:12]} 33. Rxg6+ {[%clk 0:00:10]}  Kxg6 {[%clk 0:00:13]} 34. Bc4 {[%clk 0:00:10]}  g4 {[%clk 0:00:13]} 35. fxg4 {[%clk 0:00:08]}  Kg5 {[%clk 0:00:13]} 36. Be6 {[%clk 0:00:09]}  Kh4 {[%clk 0:00:10]} 37. Bf5 {[%clk 0:00:08]}  Rc6+ {[%clk 0:00:09]} 38. Kd1 {[%clk 0:00:08]}  Na6 {[%clk 0:00:09]} 39. Ke2 {[%clk 0:00:08]}  Nc5 {[%clk 0:00:09]} 40. b4 {[%clk 0:00:08]}  Nb3 {[%clk 0:00:10]} 41. Rd5 {[%clk 0:00:08]}  Nd4+ {[%clk 0:00:07]} 42. Kd3 {[%clk 0:00:08]}  Kg3 {[%clk 0:00:06]} 43. g5 {[%clk 0:00:08]}  Kxg2 {[%clk 0:00:06]} 44. g6 {[%clk 0:00:08]}  Rc7 {[%clk 0:00:06]} 45. b5 {[%clk 0:00:07]}  f3 {[%clk 0:00:07]} 46. b6 {[%clk 0:00:07]}  Rb7 {[%clk 0:00:07]} 47. Ra5 {[%clk 0:00:06]}  f2 {[%clk 0:00:08]} 48. Ra1 {[%clk 0:00:06]}  f1=Q+ {[%clk 0:00:09]} 49. Rxf1 {[%clk 0:00:05]}  Kxf1 {[%clk 0:00:10]} 50. Kc4 {[%clk 0:00:03]}  Rxb6 {[%clk 0:00:10]} 51. Kd5 {[%clk 0:00:03]}  Rxb2 {[%clk 0:00:07]} 52. Be6 {[%clk 0:00:02]}  Nxe6 {[%clk 0:00:06]} 53. Kxe6 {[%clk 0:00:02]}  Rg2 {[%clk 0:00:07]} 54. Kf7 {[%clk 0:00:02]}  Ke2 {[%clk 0:00:07]} 55. g7 {[%clk 0:00:02]}  Ke3 {[%clk 0:00:07]} 56. g8=Q {[%clk 0:00:01]}  Rxg8 {[%clk 0:00:08]} 57. Kxg8 {[%clk 0:00:02]}  Kxe4 {[%clk 0:00:08]} 0-1


[Site "https://www.chess.com"]